bitfinex/quotes_SOLUSD_20240711
["timestamp","ask_amount","ask_price","bid_price","bid_amount"]
[1720714017745,14.77832706,138.2,138.11,15.2224]
[1720714018250,7.2364,138.19,138.11,15.2224]
[1720714018423,31.94,138.12,138.02,15.6202]
[1720714018616,31.94,138.08,138.02,15.6202]
[1720714018822,7.2428,138.07,138.02,15.6202]
[1720714019041,31.94,138.08,138.02,15.6202]
[1720714019042,7.2434,138.06,138.02,15.6202]
[1720714019242,7.2442,138.05,137.97,21.7366]
[1720714019448,7.2431,138.07,137.97,21.7366]
[1720714019621,31.94,138.08,137.97,21.7366]
[1720714020230,7.2438,138.05,137.97,21.7366]
[1720714020457,6.0497,138.07,137.97,15.6202]
[1720714020745,31.94,138.04,137.97,15.6202]
[1720714021856,39.1843,138.04,137.97,15.6202]
[1720714022019,31.94,138.04,137.97,15.6202]
[1720714022450,7.2448,138.03,137.97,15.6202]
[1720714022641,39.1844,138.04,137.97,15.6202]
[1720714022849,31.94,138.04,137.97,15.6202]
[1720714023429,39.1843,138.04,137.97,15.6202]
[1720714023641,31.94,138.04,137.97,15.6202]
[1720714024046,31.94,138.04,137.98,0.17]
[1720714024247,31.94,138.04,137.97,15.6202]
[1720714024464,39.1847,138.04,137.97,15.6202]
[1720714025030,39.1834,138.06,137.97,15.6202]
[1720714025456,39.1834,138.06,137.98,0.17]
[1720714025750,39.1834,138.06,137.98,7.4172]
[1720714025751,31.94,138.06,137.98,7.4172]
[1720714025954,31.94,138.06,137.98,0.17]
[1720714025955,39.1833,138.06,137.98,0.17]
[1720714026159,7.244,138.05,137.98,0.17]
[1720714026332,31.94,138.06,137.97,15.6202]
[1720714026333,7.2451,138.03,137.97,15.6202]
[1720714026652,31.94,138.06,137.97,15.6202]
[1720714026851,39.1835,138.06,137.97,22.8681]
[1720714027061,39.48826065,138.06,137.98,7.4173]
[1720714027239,31.94,138.06,137.98,7.4173]
[1720714027554,39.1832,138.06,137.98,0.17]
[1720714027731,31.94,138.06,137.97,15.6202]
[1720714028055,7.2438,138.05,137.97,15.6202]
[1720714028454,31.94,138.06,137.97,15.6202]
[1720714028656,39.1833,138.06,137.97,22.868]
[1720714028841,31.94,138.06,137.98,7.2474]
[1720714029161,7.2423,138.08,137.99,7.4167]
[1720714029342,38.1078,138.11,137.99,0.17]
[1720714029656,7.2427,138.07,137.99,0.17]
[1720714029857,7.2427,138.07,137.98,7.5873]
[1720714030062,15.85509944,138.1,137.98,18.4579]
[1720714030472,7.2425,138.08,137.98,25.7049]
[1720714030673,15.85509944,138.1,138.0,7.2463]
[1720714030962,23.09629944,138.1,138.01,6.8103]
[1720714031258,7.2412,138.1,138.01,6.9803]
[1720714031463,7.2417,138.09,138.01,6.9803]
[1720714032255,7.2429,138.07,138.01,6.6403]
[1720714032657,7.2433,138.06,138.01,6.6403]
[1720714032957,31.94,138.07,138.01,6.6403]
[1720714033254,39.1828,138.07,138.01,6.6403]
[1720714033456,31.94,138.07,138.01,6.6403]
[1720714034278,7.2438,138.05,137.97,21.842]
[1720714034436,31.94,138.07,137.97,21.842]
[1720714034638,39.1831,138.07,137.98,0.17]
[1720714034837,7.2433,138.06,137.98,0.17]
[1720714035252,31.94,138.07,137.98,0.17]
[1720714035553,7.2423,138.08,137.98,7.5872]
[1720714036059,7.2423,138.08,137.99,7.2467]
[1720714036254,8.30754219,138.1,138.0,7.4159]
[1720714036459,8.30754219,138.1,138.0,0.17]
[1720714036641,7.2425,138.08,138.0,0.17]
[1720714036841,26.41054219,138.1,137.98,0.17]
[1720714037047,31.94,138.07,137.97,29.0899]
[1720714037235,31.94,138.07,137.98,7.2474]
[1720714037433,31.94,138.07,137.98,18.1181]
[1720714037642,39.1827,138.07,137.97,29.0895]
[1720714037860,39.1827,138.07,137.97,39.9616]
[1720714038068,31.94,138.07,137.98,7.4171]
[1720714038356,7.2449,138.03,137.97,21.842]
[1720714038557,7.2459,138.01,137.97,15.6202]
[1720714038859,7.247,137.99,137.97,15.6202]
[1720714039045,50.0523,138.03,137.97,15.6202]
[1720714039253,7.2469,137.99,137.97,15.6202]
[1720714039549,31.94,137.99,137.94,7.248]
[1720714039749,7.2475,137.98,137.94,7.248]
[1720714040256,31.94,137.99,137.94,7.248]
[1720714040877,31.94,137.99,137.93,7.248]
[1720714041239,7.2495,137.94,137.93,7.248]
[1720714041438,31.94,137.95,137.89,4.18890909]
[1720714041661,31.94,137.95,137.81,16.294]
[1720714041662,31.94,137.91,137.81,16.294]
[1720714041848,31.94,137.91,137.84,7.2547]
[1720714042159,7.2496,137.94,137.84,7.2547]
[1720714042358,7.2501,137.93,137.85,7.248]
[1720714042664,7.2507,137.92,137.86,7.248]
[1720714042853,7.2493,137.95,137.86,7.248]
[1720714043055,7.2493,137.95,137.88,7.248]
[1720714043451,31.94,137.97,137.88,7.248]
[1720714043858,6.1793,138.03,137.94,7.248]
[1720714044040,7.246,138.01,137.94,7.248]
[1720714044238,7.2456,138.02,137.94,7.248]
[1720714044442,7.55020977,138.03,137.94,7.248]
[1720714044443,14.79500977,138.03,137.94,7.248]
[1720714044645,7.55020977,138.03,137.94,7.248]
[1720714045050,18.1136,138.02,137.94,7.248]
[1720714045345,7.2455,138.02,137.94,7.248]
[1720714045550,14.79510977,138.03,137.94,7.248]
[1720714045750,7.2453,138.02,137.96,15.201]
[1720714045953,34.85882398,138.04,137.96,15.201]
[1720714046360,31.94,138.04,137.97,0.17]
[1720714046552,7.2428,138.07,137.97,25.7075]
[1720714046748,14.79065372,138.06,137.97,18.4597]
[1720714047044,7.54745372,138.06,137.97,0.34]
[1720714047264,7.54745372,138.06,137.98,7.2472]
[1720714047460,59.10897726,138.11,137.99,0.34]
[1720714047666,7.2426,138.08,137.99,0.34]
[1720714047843,7.54631897,138.09,137.99,0.34]
[1720714048047,7.2428,138.07,137.99,0.17]
[1720714048240,7.2428,138.07,137.98,0.34]
[1720714048669,39.1828,138.07,137.98,0.34]
[1720714048972,7.2434,138.06,137.99,0.17]
[1720714049146,31.94,138.07,137.97,0.34]
[1720714049147,39.1828,138.07,137.97,7.5879]
[1720714049348,7.2428,138.07,137.97,7.5879]
[1720714050070,7.2423,138.08,137.98,7.247]
[1720714050260,34.83687726,138.11,138.02,6.4216]
[1720714050565,7.2412,138.1,138.03,0.34]
[1720714050785,31.94,138.11,138.03,0.17]
[1720714050985,31.94,138.11,138.02,6.4216]
[1720714051142,7.2434,138.06,138.02,6.4216]
[1720714051345,31.94,138.11,138.02,6.4216]
[1720714051546,18.1033,138.1,138.02,6.4216]
[1720714051767,39.1819,138.09,138.02,6.4216]
[1720714052148,31.94,138.09,138.02,6.4216]
[1720714052767,10.46611911,138.13,138.03,15.4055]
[1720714052971,6.0679,138.2,138.04,1.44282156]
[1720714053155,31.94,138.17,138.06,118.1069]
[1720714053355,31.94,138.17,138.1,15.4055]
[1720714053557,31.94,138.17,138.11,1.27334715]
[1720714053761,7.236,138.2,138.12,0.17]
[1720714054468,39.47829129,138.21,138.12,0.17]
[1720714054656,31.94,138.21,138.12,7.4096]
[1720714054856,7.2344,138.23,138.13,8.51349151]
[1720714055169,7.2344,138.23,138.16,16.2747]
[1720714055371,46.70979392,138.25,138.17,1.109552]
[1720714055551,39.1735,138.25,138.18,1.1094717]
[1720714055887,31.94,138.25,138.16,16.2747]
[1720714056675,31.94,138.25,138.17,0.17]
[1720714056966,31.94,138.25,138.17,0.34]
[1720714057547,7.2348,138.22,138.16,16.2747]
[1720714057764,31.94,138.25,138.17,7.4074]
[1720714058078,31.94,138.25,138.18,7.2366]
[1720714058248,31.94,138.25,138.19,0.17]
[1720714058450,31.94,138.25,138.17,107.5773]
[1720714058649,31.94,138.25,138.17,7.5773]
[1720714058864,31.94,138.25,138.17,100.34]
[1720714059067,31.94,138.25,138.17,0.34]
[1720714059268,39.1733,138.25,138.17,0.34]
[1720714059473,31.94,138.25,138.17,0.34]
[1720714059674,39.1737,138.25,138.17,0.34]
[1720714059858,31.94,138.25,138.17,0.34]
[1720714061569,31.94,138.25,138.16,16.2747]
[1720714062051,7.2341,138.24,138.16,16.2747]
[1720714062253,7.2346,138.23,138.16,16.2747]
[1720714062455,50.0238,138.25,138.16,16.2747]
[1720714062657,31.94,138.21,138.16,16.2747]
[1720714062975,7.2362,138.2,138.16,16.2747]
[1720714063173,7.2369,138.19,138.16,16.2747]
[1720714063559,31.94,138.21,138.16,16.2747]
[1720714064155,7.236,138.2,138.16,16.2747]
[1720714064390,7.237,138.18,138.16,16.2747]
[1720714064552,7.2365,138.19,138.16,13.51188519]
[1720714064755,31.94,138.21,138.16,13.51188519]
[1720714064963,18.0851,138.24,138.16,13.51188519]
[1720714065172,7.2353,138.22,138.16,13.51188519]
[1720714065352,7.2339,138.24,138.16,13.51188519]
[1720714065774,7.2343,138.23,138.16,13.51188519]
[1720714065981,7.2348,138.22,138.16,13.51188519]
[1720714066180,34.90018265,138.25,138.16,13.51188519]
[1720714066881,7.2353,138.21,138.16,13.51188519]
[1720714067065,7.2362,138.2,138.16,13.51188519]
[1720714067273,66.84018265,138.25,138.16,13.51188519]
[1720714067466,34.90018265,138.25,138.16,13.51188519]
[1720714067781,7.2349,138.22,138.16,13.51188519]
[1720714068080,42.13388265,138.25,138.16,13.51188519]
[1720714068287,7.2339,138.24,138.16,13.51188519]
[1720714068461,34.90018265,138.25,138.16,13.51188519]
[1720714068675,31.94,138.25,138.18,6.3527]
[1720714069573,39.1732,138.25,138.18,6.3527]
[1720714070088,7.2339,138.24,138.18,6.3527]
[1720714070383,31.94,138.25,138.18,6.3527]
[1720714070973,0.8261568,138.27,138.2,15.3791]
[1720714071174,0.8261568,138.27,138.21,18.258]
[1720714071480,0.8261568,138.27,138.22,0.17]
[1720714071659,0.8261568,138.27,138.22,7.4047]
[1720714071863,0.8261568,138.27,138.23,0.17]
[1720714072062,31.94,138.32,138.24,6.4596]
[1720714072286,31.94,138.32,138.26,15.7439]
[1720714072690,42.15862616,138.35,138.26,15.7439]
[1720714072989,7.2285,138.34,138.26,15.7439]
[1720714073185,42.15832616,138.35,138.26,15.7439]
[1720714073400,10.21832616,138.35,138.26,22.9765]
[1720714073595,7.53070812,138.36,138.27,0.17]
[1720714073770,7.2266,138.38,138.29,18.0771]
[1720714073968,32.7661568,138.41,138.29,25.3081]
[1720714073969,14.75449719,138.39,138.29,25.3081]
[1720714074285,7.52849719,138.39,138.3,0.34]
[1720714074686,32.7661568,138.41,138.3,0.34]
[1720714074993,7.2259,138.39,138.3,0.34]
[1720714075297,7.2254,138.4,138.31,22.5767]
[1720714075501,40.30106484,138.41,138.32,0.17]
[1720714075502,7.226,138.39,138.32,0.17]
[1720714075790,7.2257,138.4,138.32,0.17]
[1720714076287,50.48872795,138.41,138.32,0.17]
[1720714076490,8.36106484,138.41,138.33,16.1625]
[1720714076676,0.8261568,138.41,138.34,0.17]
[1720714077078,8.0510568,138.41,138.34,0.17]
[1720714077272,0.8261568,138.41,138.33,16.1625]
[1720714077686,7.2259,138.39,138.33,16.1625]
[1720714077890,0.8261568,138.41,138.33,16.1625]
[1720714078194,0.8261568,138.41,138.34,0.17]
[1720714078375,0.8261568,138.41,138.33,16.1625]
[1720714078574,7.2271,138.37,138.33,16.1625]
[1720714078788,7.2264,138.38,138.33,16.1625]
[1720714079087,32.7661568,138.41,138.33,16.1625]
[1720714079494,0.17,138.4,138.33,16.1625]
[1720714079676,31.94,138.36,138.29,15.9794]
[1720714079878,31.94,138.36,138.12,15.0]
[1720714079879,31.94,138.36,138.25,15.9794]
[1720714080090,50.0149,138.32,138.25,15.9794]
[1720714080298,31.94,138.32,138.25,15.9794]
[1720714080779,7.2318,138.28,138.25,15.9794]
[1720714080977,7.2301,138.31,138.25,15.9794]
[1720714081172,31.94,138.32,138.25,15.9794]
[1720714081375,7.2318,138.28,138.25,15.9794]
[1720714081979,7.2307,138.3,138.25,15.9794]
[1720714082181,31.94,138.32,138.25,15.9794]
[1720714082382,7.2307,138.3,138.25,15.9794]
[1720714082585,38.95,138.31,138.25,15.9794]
[1720714082787,7.2307,138.3,138.25,15.9794]
[1720714082976,7.2311,138.29,138.25,15.9794]
[1720714083176,7.2307,138.3,138.25,15.9794]
[1720714084077,38.95,138.31,138.25,15.9794]
[1720714084078,46.0105,138.31,138.25,15.9794]
[1720714084297,25.12148386,138.35,138.25,15.9794]
[1720714084298,45.83098386,138.35,138.25,15.9794]
[1720714084500,7.228,138.35,138.26,0.17]
[1720714084675,7.228,138.35,138.26,0.34]
[1720714084676,7.2282,138.35,138.26,0.34]
[1720714085001,7.2268,138.38,138.28,7.2312]
[1720714085179,7.2268,138.38,138.29,0.34]
[1720714085383,7.227,138.37,138.29,0.34]
[1720714085775,7.2286,138.34,138.28,0.17]
[1720714085993,41.77849227,138.4,138.28,0.34]
[1720714086197,7.2263,138.39,138.28,0.34]
[1720714086400,7.2267,138.38,138.31,16.0694]
[1720714086697,38.78,138.4,138.31,16.0694]
[1720714087201,7.2273,138.37,138.31,16.0694]
[1720714087588,7.55508627,138.39,138.31,16.0694]
[1720714087792,38.78,138.4,138.32,18.0738]
[1720714087994,38.78,138.4,138.33,0.17]
[1720714088182,0.8261568,138.41,138.33,0.17]
[1720714088583,0.8261568,138.41,138.34,6.0168]
[1720714088780,0.8261568,138.41,138.35,0.17]
[1720714088981,0.8261568,138.41,138.34,6.0168]
[1720714089380,0.8261568,138.41,138.35,0.17]
[1720714089794,0.8261568,138.41,138.34,6.0168]
[1720714090507,8.0511568,138.41,138.34,6.0168]
[1720714090803,8.0513568,138.41,138.34,6.0168]
[1720714090994,0.8261568,138.41,138.34,6.0168]
[1720714091414,7.2258,138.4,138.34,6.0168]
[1720714091587,0.8261568,138.41,138.34,6.0168]
[1720714091788,7.227,138.37,138.34,6.0168]
[1720714092010,7.2276,138.36,138.34,6.0168]
[1720714092502,0.8261568,138.41,138.34,6.0168]
[1720714092692,7.2255,138.4,138.34,6.0168]
[1720714092891,0.8261568,138.41,138.34,6.0168]
[1720714093093,7.2264,138.39,138.34,6.0168]
[1720714093292,7.3956,138.4,138.34,6.0168]
[1720714093800,7.2266,138.38,138.34,6.0168]
[1720714094108,8.0511568,138.41,138.34,6.0168]
[1720714094309,0.8261568,138.41,138.34,6.0168]
[1720714095119,0.8261568,138.41,138.36,16.4433]
[1720714096207,8.0511568,138.41,138.36,16.4433]
[1720714096415,0.8261568,138.41,138.36,16.4433]
[1720714097114,8.0512568,138.41,138.36,16.4433]
[1720714097295,0.8261568,138.41,138.36,16.4433]
[1720714098410,8.0510568,138.41,138.36,16.4433]
[1720714098712,0.8261568,138.41,138.36,16.4433]
[1720714098903,7.2255,138.4,138.36,16.4433]
[1720714099212,0.8261568,138.41,138.36,16.4433]
[1720714100112,8.0511568,138.41,138.36,16.4433]
[1720714100321,0.8261568,138.41,138.36,16.4433]
[1720714100614,8.0513568,138.41,138.36,16.4433]
[1720714100816,0.8261568,138.41,138.36,16.4433]
[1720714101489,0.17,138.4,138.36,16.4433]
[1720714101812,7.2268,138.38,138.36,16.4433]
[1720714102316,7.227,138.37,138.36,16.4433]
[1720714102814,18.4037,138.4,138.32,15.1658]
[1720714103310,7.2278,138.36,138.32,15.1658]
[1720714103914,0.8261568,138.41,138.32,15.1658]
[1720714104109,7.2264,138.39,138.32,15.1658]
[1720714104313,0.17,138.4,138.32,15.1658]
[1720714104819,8.0513568,138.41,138.32,22.3953]
[1720714105020,0.8261568,138.41,138.33,7.5689]
[1720714105615,0.8261568,138.41,138.35,22.9339]
[1720714106121,7.55333228,138.46,138.41,7.2246]
[1720714106419,7.2209,138.49,138.42,0.17]
[1720714106601,7.2208,138.49,138.4,7.395]
[1720714106808,7.2208,138.49,138.41,0.17]
[1720714107119,7.2211,138.49,138.39,25.2901]
[1720714107300,34.64775301,138.51,138.36,41.002]
[1720714107506,34.64775301,138.51,138.37,0.17]
[1720714107718,18.0523,138.49,138.37,0.17]
[1720714107900,7.2222,138.47,138.38,7.2263]
[1720714108104,41.39073372,138.51,138.39,0.17]
[1720714108297,7.55081375,138.52,138.4,21.1309]
[1720714108628,0.8261568,138.54,138.43,18.0594]
[1720714108629,8.0446568,138.54,138.43,18.0594]
[1720714108924,8.0446568,138.54,138.42,15.1297]
[1720714108925,31.68,138.53,138.42,15.1297]
[1720714109099,18.0479,138.52,138.42,15.1297]
[1720714109299,31.68,138.53,138.42,15.1297]
[1720714109701,7.2206,138.5,138.42,15.1297]
[1720714109906,49.7271,138.53,138.42,15.1297]
[1720714110102,31.68,138.49,138.42,15.1297]
[1720714110316,31.68,138.49,138.42,12.80036076]
[1720714110519,0.17,138.48,138.4,6.0012]
[1720714110819,7.2235,138.44,138.4,6.0012]
[1720714111117,7.2221,138.47,138.4,6.0012]
[1720714111321,0.17,138.48,138.4,6.0012]
[1720714111709,7.2191,138.52,138.42,7.2239]
[1720714111897,31.68,138.52,138.43,0.17]
[1720714112101,31.68,138.52,138.43,7.3937]
[1720714112310,31.68,138.52,138.43,7.3938]
[1720714112713,38.8991,138.52,138.43,7.3938]
[1720714113025,31.68,138.52,138.43,7.3938]
[1720714113406,31.68,138.52,138.44,15.2062]
[1720714113731,38.8993,138.52,138.44,15.2062]
[1720714114030,7.2197,138.51,138.44,15.2062]
[1720714114230,38.8993,138.52,138.44,15.2062]
[1720714114417,31.68,138.52,138.44,15.2062]
[1720714114817,31.68,138.52,138.44,22.4293]
[1720714115125,31.68,138.52,138.45,0.17]
[1720714115937,31.68,138.52,138.44,33.2639]
[1720714116129,31.68,138.52,138.44,40.4871]
[1720714116429,31.68,138.52,138.45,13.5397]
[1720714116606,0.8261568,138.54,138.47,7.2215]
[1720714117002,0.8261568,138.54,138.48,0.17]
[1720714117522,0.8261568,138.54,138.46,25.4471]
[1720714117825,8.0443568,138.54,138.47,0.17]
[1720714118123,8.0443568,138.54,138.46,0.17]
[1720714118124,0.8261568,138.54,138.46,7.5622]
[1720714118331,0.8261568,138.54,138.47,0.17]
[1720714118621,0.8261568,138.54,138.47,7.3917]
[1720714118826,0.8261568,138.54,138.48,0.17]
[1720714119023,0.8261568,138.54,138.47,0.17]
[1720714119226,0.8261568,138.54,138.47,7.3916]
[1720714119525,0.8261568,138.54,138.49,7.2206]
[1720714119715,0.8261568,138.54,138.48,0.17]
[1720714121339,0.8261568,138.54,138.48,7.3912]
[1720714121518,0.8261568,138.54,138.48,0.17]
[1720714121712,0.8261568,138.54,138.47,0.34]
[1720714121912,8.0443568,138.54,138.47,0.34]
[1720714122125,0.8261568,138.54,138.47,7.5612]
[1720714122314,0.8261568,138.54,138.49,23.0511]
[1720714122621,0.8261568,138.54,138.5,0.17]
[1720714123032,0.8261568,138.54,138.49,15.8305]
[1720714123716,8.0445568,138.54,138.49,15.8305]
[1720714124023,0.8261568,138.54,138.49,15.8305]
[1720714124425,0.8261568,138.54,138.5,0.17]
[1720714125128,0.8261568,138.54,138.5,7.5601]
[1720714125327,0.8261568,138.54,138.5,0.34]
[1720714125536,0.8261568,138.54,138.51,6.4339]
[1720714130617,2.98934781,138.58,138.51,6.4339]
[1720714130835,46.43551767,138.6,138.51,13.6535]
[1720714131047,38.8951,138.6,138.51,13.6535]
[1720714131337,31.68,138.6,138.52,7.2187]
[1720714131543,34.65612366,138.6,138.52,7.3887]
[1720714132038,41.87122366,138.6,138.52,0.17]
[1720714132631,7.2155,138.59,138.52,0.17]
[1720714133122,41.87112366,138.6,138.52,0.17]
[1720714133324,34.65612366,138.6,138.52,7.389]
[1720714133836,2.97612366,138.6,138.53,7.2184]
[1720714134033,7.54527096,138.62,138.54,7.558]
[1720714134336,7.2148,138.61,138.52,25.4363]
[1720714134550,7.54527096,138.62,138.51,6.4339]
[1720714134724,31.68,138.6,138.51,6.4339]
[1720714134917,7.2165,138.57,138.51,6.4339]
[1720714135117,7.2161,138.58,138.51,6.4339]
[1720714135640,7.2165,138.57,138.51,6.4339]
[1720714136059,7.2162,138.58,138.51,6.4339]
[1720714136354,7.2171,138.56,138.51,6.4339]
[1720714136524,0.17,138.59,138.51,6.4339]
[1720714136525,7.2182,138.54,138.51,6.4339]
[1720714136725,31.68,138.56,138.49,15.8305]
[1720714136942,7.2194,138.52,138.49,15.8305]
[1720714137123,0.34,138.55,138.49,15.8305]
[1720714137526,18.3844,138.55,138.49,15.8305]
[1720714137739,7.2191,138.52,138.49,15.8305]
[1720714137945,7.2185,138.54,138.49,15.8305]
[1720714138242,0.17,138.55,138.49,15.8305]
[1720714138461,7.2191,138.53,138.49,15.8305]
[1720714138642,0.17,138.55,138.49,15.8305]
[1720714138943,31.68,138.56,138.49,15.8305]
[1720714139143,31.68,138.58,138.49,15.8305]
[1720714139517,7.2165,138.57,138.49,15.8305]
[1720714139722,41.87464725,138.58,138.49,23.0511]
[1720714139936,41.87464725,138.58,138.5,0.17]
[1720714140152,34.65844725,138.58,138.5,0.17]
[1720714140536,41.87474725,138.58,138.5,0.17]
[1720714140742,7.2171,138.56,138.49,15.8305]
[1720714141033,34.65844725,138.58,138.49,15.8305]
[1720714141242,45.78369926,138.62,138.51,7.2192]
[1720714141549,39.22527096,138.62,138.53,22.5406]
[1720714141728,42.18584497,138.62,138.53,22.5406]
[1720714141929,7.2146,138.61,138.53,22.5406]
[1720714142153,49.39984497,138.62,138.53,29.7591]
[1720714142353,42.18584497,138.62,138.53,29.759]
[1720714142565,42.18584497,138.62,138.53,22.5406]
[1720714142735,7.2169,138.57,138.53,22.5406]
[1720714143049,31.68,138.58,138.53,22.5406]
[1720714143353,38.8961,138.58,138.53,22.5406]
[1720714143551,31.68,138.58,138.53,22.5406]
[1720714143859,39.22154203,138.58,138.53,16.1843]
[1720714144031,38.8964,138.58,138.53,16.1843]
[1720714144238,31.68,138.58,138.53,16.1843]
[1720714145030,7.2146,138.61,138.53,16.1843]
[1720714145764,7.215,138.6,138.53,16.1843]
[1720714146057,7.2155,138.59,138.53,16.1843]
[1720714146460,7.2151,138.6,138.53,16.1843]
[1720714147058,7.2146,138.61,138.53,16.1843]
[1720714147242,41.85467401,138.62,138.53,23.4025]
[1720714147436,34.64057401,138.62,138.53,16.1843]
[1720714147641,7.2153,138.6,138.53,16.1843]
[1720714147841,34.64057401,138.62,138.53,16.1843]
[1720714148042,7.2174,138.56,138.5,6.5966]
[1720714148254,31.68,138.58,138.5,6.5966]
[1720714148466,38.8963,138.58,138.5,6.5966]
[1720714148641,31.68,138.58,138.5,6.5966]
[1720714149043,31.68,138.58,138.5,13.8166]
[1720714149244,38.8961,138.58,138.5,6.5966]
[1720714149655,31.68,138.58,138.5,6.5966]
[1720714149851,7.2176,138.55,138.5,6.5966]
[1720714150061,31.68,138.58,138.5,6.5966]
[1720714150360,7.2167,138.57,138.5,6.5966]
[1720714150540,7.218,138.55,138.5,6.5966]
[1720714150744,7.2181,138.54,138.5,6.5966]
[1720714151050,18.0421,138.57,138.47,6.5465]
[1720714151257,31.68,138.54,138.47,22.4337]
[1720714152263,31.68,138.6,138.47,40.4877]
[1720714152454,7.2171,138.56,138.47,47.709]
[1720714152656,7.2171,138.56,138.48,0.34]
[1720714152860,0.34,138.59,138.48,0.34]
[1720714153043,0.17,138.59,138.48,0.34]
[1720714153238,7.2164,138.58,138.49,7.2206]
[1720714153444,7.2164,138.58,138.5,0.17]
[1720714153748,7.3856,138.59,138.5,7.3901]
[1720714153951,7.2156,138.59,138.5,7.3901]
[1720714154266,31.68,138.6,138.52,6.6135]
[1720714154267,38.895,138.6,138.52,6.6135]
[1720714154467,31.68,138.6,138.53,0.17]
[1720714154754,31.68,138.6,138.54,15.8041]
[1720714154935,31.68,138.6,138.55,0.34]
[1720714155340,7.2135,138.63,138.55,0.34]
[1720714155752,7.2139,138.62,138.55,0.17]
[1720714155954,31.68,138.63,138.56,6.4492]
[1720714156156,7.53500655,138.65,138.57,0.34]
[1720714156359,0.8261568,138.68,138.57,0.34]
[1720714156360,0.8261568,138.68,138.58,22.7138]
[1720714156535,0.8261568,138.68,138.59,18.3783]
[1720714156954,8.0369568,138.68,138.59,18.3783]
[1720714157161,0.8261568,138.68,138.58,22.7138]
[1720714157455,31.68,138.66,138.58,22.7138]
[1720714157675,31.68,138.62,138.58,6.4492]
[1720714158152,38.8941,138.62,138.58,6.4492]
[1720714158565,38.8941,138.62,138.54,16.216]
[1720714158765,7.2147,138.61,138.55,6.0385]
[1720714159175,31.68,138.62,138.55,6.0385]
[1720714159349,31.68,138.62,138.55,13.256]
[1720714159549,31.68,138.62,138.55,6.0385]
[1720714160059,18.0219,138.72,138.58,22.3085]
[1720714160372,31.68,138.7,138.6,7.2146]
[1720714160540,7.2117,138.67,138.61,0.17]
[1720714160874,20.0,138.66,138.59,7.2642]
[1720714161047,0.8261568,138.68,138.59,0.0489]
[1720714161559,0.8261568,138.68,138.59,7.2643]
[1720714161860,0.8261568,138.68,138.6,7.215]
[1720714163061,0.8261568,138.68,138.61,0.17]
[1720714163668,8.0371568,138.68,138.61,0.17]
[1720714163962,20.0,138.67,138.6,0.17]
[1720714164546,0.8261568,138.68,138.61,7.2141]
[1720714164746,0.8261568,138.68,138.62,0.34]
[1720714165176,0.8261568,138.68,138.62,7.5538]
[1720714165380,0.8261568,138.68,138.63,22.5077]
[1720714166272,7.2115,138.67,138.63,22.5077]
[1720714166467,8.0371568,138.68,138.63,22.5077]
[1720714166763,0.8261568,138.68,138.63,22.5077]
[1720714166946,28.0373568,138.68,138.63,22.5077]
[1720714167143,7.2116,138.67,138.63,22.5077]
[1720714167349,27.2123,138.66,138.6,15.7581]
[1720714167670,20.0,138.65,138.6,15.7581]
[1720714168473,7.2115,138.67,138.6,15.7581]
[1720714168764,69.88,138.66,138.56,15.6547]